Cogmind - Beta 13 @@@ ROGUE MODE // 2024.04.02 @ 18:27:24 Player: Eusmilis Result: Destroyed by G-34 Mercenary with Small Laser Performance ------------- Evolutions (0) 0 Regions Visited (1) 200 Robots Destroyed (15) 75 Value Destroyed (221) 221 Prototype IDs (0) 0 Alien Tech Used (0) 0 Bonus (0) 0 TOTAL SCORE: 496 Bonus ------- None Cogmind --------- Core Integrity 0/250 Matter 231/300 Energy 238/250 System Corruption 0% Temperature Cool (30) Movement Core (250) Ox4 Location -10/Materials Parts ------- > --- POWER (1) -------- Ion Engine > --- PROPULSION (2) --- (None) > --- UTILITY (2) ------ Small Storage Unit Improved Terrain Scanner > --- WEAPON (2) ------- EM Pulse Gun > --- INVENTORY (8) ---- Hover Unit Flight Unit High-capacity Matter Pod (0) Signal Interpreter Hacking Suite Peak State ------------ > --- POWER ------------ Light Ion Engine > --- PROPULSION ------- Hover Unit Hover Unit > --- UTILITY ---------- Small Storage Unit Improved Terrain Scanner > --- WEAPON ----------- Assault Rifle Light Assault Rifle > --- INVENTORY -------- Ion Engine Hover Unit Hover Unit Flight Unit Medium Matter Pod Signal Interpreter Hacking Suite EM Pulse Gun [Rating: 10] Favorites ----------- Power Light Ion Engine Engine Light Ion Engine Propulsion Hover Unit Leg Aluminum Leg Hover Unit Hover Unit Flight Unit Flight Unit Utility Small Storage Unit Device Improved Terrain Scanner Storage Small Storage Unit Weapon Light Assault Rifle Energy Gun EM Pulse Gun Ballistic Gun Light Assault Rifle Build | -11 -10 ------- Run | Yrd Mat Slots Evolved . | . . Power . | . . Propulsion . | . . Utility . | . . Weapon . | . . Parts Attached 21 | 7 14 Power 3 | 1 2 Engine 3 | 1 2 Core . | . . Reactor . | . . Propulsion 12 | 2 10 Treads . | . . Leg 3 | 2 1 Wheel . | . . Hover 7 | . 7 Flight 2 | . 2 Utility 2 | 2 . Device 1 | 1 . Storage 1 | 1 . Processor . | . . Hackware . | . . Protection . | . . Artifact . | . . Weapon 4 | 2 2 Energy Gun 1 | . 1 Energy Cannon . | . . Ballistic Gun 3 | 2 1 Ballistic Cannon . | . . Launcher . | . . Special Weapon . | . . Impact Weapon . | . . Slashing Weapon . | . . Piercing Weapon . | . . Special Melee Weapon . | . . Unidentified Prototypes . | . . Parts Lost 6 | . 6 Power 1 | . 1 Propulsion 3 | . 3 Utility . | . . Weapon 2 | . 2 Highest Loss Streak 4 | . 4 To Critical Strikes . | . . Average Slot Usage (%) 93 | . 93 Engine 13 | . 13 Leg 2 | . 2 Hover 20 | . 20 Flight 1 | . 1 Device 14 | . 14 Storage 14 | . 14 Ballistic Gun 27 | . 27 Naked Turns . | . . Heaviest Build 14 | 14 14 Greatest Support 20 | 20 20 Greatest Overweight (x) 4 | . 4 Average Overweight (x) . | . . Largest Inventory Capacity 8 | 8 8 Average Capacity 7 | 6 8 Most Carried 8 | 2 8 Average Carried 5 | 1 6 Final Capacity 8 | 8 8 Final Carried 5 | 2 5 Class Distribution -------------------- 100% | Mutant Dominant Class ---------------- Mutant | -10/Materials Resources | -11 -10 ----------- Run | Yrd Mat Matter Collected 453 | 198 255 Remotely . | . . Salvage Created 337 | 21 316 Parts 38 | 3 35 Haulers Intercepted . | . . Recyclers Shooed . | . . Parts Field Recycled . | . . Retrieved Matter . | . . Parts Self-Destructed . | . . Prevented . | . . Kills | -11 -10 ------- Run | Yrd Mat Combat Hostiles Destroyed 10 | . 10 Guns 9 | . 9 AOE 1 | . 1 Classes Destroyed 6 | 1 5 Builder 2 | . 2 Tunneler 1 | 1 . Operator 1 | . 1 Watcher 1 | . 1 Swarmer 7 | . 7 Grunt 3 | . 3 Best Kill Streak 3 | 1 3 Combat Bots Only 3 | . 3 Max Kills in Single Turn 2 | 1 2 Gunslinging . | . . Exploded 1 | . 1 Melee . | . . Uniques/NPCs Destroyed . | . . Combat | -11 -10 -------- Run | Yrd Mat Hostile Shots Fired 135 | . 135 Missed 43 | . 43 Damage Taken 859 | . 859 Core 254 | . 254 Absorbed by Shields . | . . Regen/Repaired (Parts) 49 | . 49 Core Remaining (%) 100 | 100 . Volleys Fired 56 | 2 54 Largest 2 | 2 2 Hottest 40 | 40 40 Shots Fired 92 | 4 88 Gun 92 | 4 88 Cannon . | . . Launcher . | . . Special . | . . Kinetic 90 | 4 86 Thermal . | . . Explosive . | . . Electromagnetic 2 | . 2 Robot Hit Streak 5 | 2 5 Robot Miss Streak 10 | 1 10 Penetration Max . | . . Secondary Targets 1 | . 1 Max Gunslinging Chain 1 | . 1 Shots Hit Robots 42 | 2 40 Core Hits 21 | 2 19 Critical Kills 1 | . 1 Critical Parts Destroyed . | . . Critical Strikes 1 | . 1 Destroy 1 | . 1 Melee Attacks . | . . Impact . | . . Slashing . | . . Piercing . | . . Sneak Attacks . | . . Combat Hostiles . | . . Follow-up Attacks . | . . Damage Inflicted 597 | 18 579 Guns 438 | 18 420 Cannons . | . . Explosions 159 | . 159 Melee . | . . Ramming . | . . Kinetic 423 | 18 405 Thermal 159 | . 159 Explosive . | . . Electromagnetic 15 | . 15 Impact . | . . Slashing . | . . Piercing . | . . Highest Corruption . | . . Average Corruption . | . . Corruption Purged . | . . Corruption Blocked . | . . Overload Shots . | . . Overflow Damage . | . . Projectiles . | . . Explosions . | . . Melee . | . . Knockbacks . | . . Impact . | . . Kinetic . | . . Secondary . | . . Self-Inflicted Damage 10 | . 10 Shots 1 | . 1 Rammed 1 | . 1 Targets Rammed 1 | . 1 Kicked . | . . Crushed . | . . Highest Temperature 24 | . 24 Average Temperature 5 | . 5 Received Heat Transfer 192 | . 192 Siege Activations . | . . Robots Corrupted . | . . Combat Hostiles . | . . Parts Fried . | . . Impact Corruptions . | . . Robots Melted . | . . Combat Hostiles . | . . Parts Melted . | . . Heat Transferred 200 | . 200 Parts Sabotaged . | . . Parts Stolen . | . . Parts Stripped . | . . Power Chain Reactions 1 | . 1 Alert | -11 -10 ------- Run | Yrd Mat Peak Influence 196 | 5 196 Initial 3 | . 3 Average 84 | 2 93 Maximum Alert Level . | . . Low Security (%) 100 | 100 100 Level 1 . | . . Level 2 . | . . Level 3 . | . . Level 4 . | . . Level 5 . | . . High Security . | . . Max Security . | . . Squads Dispatched 3 | . 3 Investigation . | . . Extermination . | . . Reinforcement 3 | . 3 Assault . | . . Garrison . | . . Intercept . | . . Searches Triggered . | . . Construction Impeded . | . . Haulers Reinforced . | . . Active Scanning Responses . | . . Cargo Convoy Interrupts . | . . Stealth | -11 -10 --------- Run | Yrd Mat Distress Signals 2 | . 2 Communications Jammed . | . . Distress Signals . | . . Times Spotted 24 | . 24 Peak Tracking Total 8 | . 8 Tactical Retreats . | . . Traps | -11 -10 ------- Run | Yrd Mat Traps Triggered . | . . Indirectly . | . . Trap Hack Attempts . | . . Triggered . | . . Disarmed . | . . Reprogrammed . | . . Reused . | . . Traps Extracted . | . . Installed . | . . Triggered . | . . Machines | -11 -10 ---------- Run | Yrd Mat Machines Disabled . | . . Max in Single Turn . | . . Machines Repaired . | . . Machines Dismantled . | . . Machines Sabotaged . | . . Overloaded Fab Kills . | . . Hacking | -11 -10 --------- Run | Yrd Mat Machines Accessed 3 | . 3 Terminals 1 | . 1 Fabricators . | . . Repair Stations 1 | . 1 Recycling Units 1 | . 1 Scanalyzers . | . . Garrison Access . | . . Total Hacks 10 | . 10 Successful 6 | . 6 Failed 4 | . 4 Catastrophic . | . . Database Lockouts . | . . Manual . | . . Terminals 3 | . 3 Fabricators . | . . Repair Stations 4 | . 4 Recycling Units 3 | . 3 Scanalyzers . | . . Garrison Access . | . . Terminal Hacks 1 | . 1 Locate Traps 1 | . 1 Fabricator Hacks . | . . Repair Station Hacks 4 | . 4 Scan Component 2 | . 2 Repair 2 | . 2 Recycling Unit Hacks 1 | . 1 Report Inventory 1 | . 1 Scanalyzer . | . . Garrison Access Hacks . | . . Unauthorized Hacks . | . . Terminals . | . . Fabricators . | . . Repair Stations . | . . Recycling Units . | . . Scanalyzers . | . . Garrison Access . | . . Data Cores Recovered . | . . Used . | . . Hacking Detections 2 | . 2 Full Trace Events 1 | . 1 Feedback Events . | . . Feedback Blocked . | . . Robot Schematics Acquired . | . . Robots Built . | . . Authchips . | . . Time . | . . Total Robot Build Rating . | . . Part Schematics Acquired . | . . Parts Built . | . . Authchips . | . . Time . | . . Total Part Build Rating . | . . Parts Repaired 2 | . 2 Time 52 | . 52 Parts Recycled . | . . Recycled Matter . | . . Retrieved Matter . | . . Retrieved Components . | . . Parts Scanalyzed . | . . Part Schematics Acquired . | . . Parts Damaged . | . . Bothacking | -11 -10 ------------ Run | Yrd Mat Used RIF Installer . | . . Robots Hacked . | . . Non-combat . | . . Combat . | . . Robot Hacks Applied . | . . Relay Couplers Released . | . . Fabnet Peak Effective % . | . . Robots Rewired . | . . Allies Hacked . | . . Hacks Repelled . | . . Allies | -11 -10 -------- Run | Yrd Mat Total Allies . | . . Largest Group . | . . Highest-Rated Group . | . . Highest-Rated Ally . | . . Total Orders . | . . Ally Attacks . | . . Total Damage . | . . Kills . | . . Allies Corrupted . | . . Allies Melted . | . . Intel | -11 -10 ------- Run | Yrd Mat Robot Analysis Total . | . . Derelict Logs Recovered . | . . Drone Launches . | . . Drone Recoveries . | . . Exploration | -11 -10 ------------- Run | Yrd Mat Turns Passed 627 | 65 562 Spaces Moved 454 | 44 410 Core 8 | 7 1 Treads . | . . Legs 67 | 37 30 Wheels . | . . Hover 366 | . 366 Flight 13 | . 13 Fastest Speed 50 | 50 56 Average Speed 80 | 108 77 Slowest Speed 280 | 120 280 Overloaded Moves . | . . Propulsion Burnouts . | . . Robots Hopped . | . . Cave-ins Triggered . | . . Exploration Rate (%) 32 | 4 61 Regions Visited 1 Branch Regions . Pre-discovered Areas . | . . Known Exits Taken . | . . Unknown Exits Taken 1 | 1 . Scrap Searched . | . . Spaces Dug . | . . Terrain Destroyed 3 | . 3 Melee . | . . Projectile . | . . AOE 3 | . 3 Terrain Rammed . | . . Walls Destroyed . | . . Machines Disabled . | . . Actions | -11 -10 --------- Run | Yrd Mat Total 632 | 54 578 Wait 77 | . 77 Move 453 | 43 410 Hop . | . . Pick Up 12 | 2 10 Fast Attach 17 | 7 10 Attach 3 | . 3 Detach . | . . Swap 1 | . 1 Drop 12 | . 12 Fire 56 | 2 54 Melee . | . . Ram 1 | . 1 Kick . | . . Crush . | . . Escape Stasis . | . . Rewire . | . . Trap . | . . Miscellaneous . | . . Route ------- -11/Scrapyard -10/Materials (discovered 3 exits: [*Mat x2] / [*Min]) History --------- Turn | Location | Event 7 | -11/Scrapyard | Discovered new exit (range 16) 66 | -11/Scrapyard | Entered Materials 114 | -10/Materials | Discovered new exit (range 15) 303 | -10/Materials | Build established: Mutant 314 | -10/Materials | Repaired Hover Unit 342 | -10/Materials | Repaired Hover Unit 373 | -10/Materials | Discovered new exit (range 8) 510 | -10/Materials | Discovered new exit (range 16) 588 | -10/Materials | Core integrity fell below 50% 616 | -10/Materials | Core integrity fell below 20% 628 | -10/Materials | Destroyed by G-34 Mercenary with Small Laser Last Messages --------------- reinforcements to Terminal M008. S-10 Pest destroyed. Hover Unit destroyed. Lgt. Ion Engine destroyed. K-01 Serf cleans the Electrolysis Chamber. Lgt. Assault Rifle destroyed. K-01 Serf cleans the Electrolysis Chamber. Hover Unit destroyed. K-01 Serf cleans the Electrolysis Chamber. S-10 Pest destroyed. K-01 Serf cleans the Electrolysis Chamber. S-10 Pest destroyed. Acquired 16 matter. Hover Unit destroyed. R-06 Scavenger collects Lgt. Assault Rifle. Lgt. Assault Rifle destroyed. Chain reaction triggered in Ion Engine. G-34 Mercenary destroyed. U-05 Engineer destroyed. K-01 Serf collects debris. Map ----- +----------------------------------------------------+ | #### #????# #??????????????????????????? | | ???# ###### #??????????????????????????? | | ???# ! #??#??#????????????????????? | | ???# #??????????????????????????? | | ???# != ####?????????????#?????????? | | #### ###### # ??########### ?????????? | | #??????# # ? ??????????? | | #??????# # ??????????? | | #????#?# # """ """ ??????????? | | ### """ #?#???## # """ """ ???????????? | | +#### """ #??????# # """ """ ???????????? | | # """ ##??#??# # #########???? | | "" + "#######+# # #???? | | R" # T## ! # """ """ / #???? | | " # """ "## # """ """ # #???? | | # """ ### """ # """ """ # #???? | | # """ ### """ # # #???? | | ##### + """ m # #? ?# | | ??#?# ### #u """ """ # # ??? | | ###?# #?########k^""" """ # #???? | | # ####+####??### """ """ # #???? | | " # # ##??#; # =%= #???? | | " + + #???##!= # [ #???? | | " # # ##??#;%%g ######/##???? | | + #########????#! % ## ###????? #????? | | ##=###????########; =@### #??????? #????? | | ####?#=#?#????# # [#?#!!==]]#??????? #????? | | ?????#!#??????#! + #?#!!==]]#??????? #????? | | ?????#=#??????# # #?########??????? #????? | | ?????# #?#????######### #??????#????????? #????? | | ??#?##+#######????? ### #???????#?????????#????? | | ????#!*= #?#???# # ###########?#??????????? | | ##### ! """ #????## # #??#?????????? | | # "T" #?????# # #= #?#??????????? | | # #?????#### # #????????????? | | + #?????#??# # #????????????? | | # """ #?#??????# + """" #????????????? | | # """ #?#??????# # """" ?????????????? | | ## """ #????????# # """"??????????????? | | ## #??#??#??# #! ??#??????????? | | ####+######??#?????# ###########????????????? | | #??# #???????##??#?# #????????#?????????????? | | #### #?????????????# #??????????????????????? | | #?????????????# < #???#??????????????????? | | ###???????????# #??????????????????????? | | #?????????????#####??????????????????????? | | < ##+#####??????????????????????????????????????? | | # #??????????????????????????????????????? | | #### """ #??????????????????????????????????????? | | ???# """ #??????????????????????????????????????? | +----------------------------------------------------+ Best States ------------- Heat Dissipation 25 Energy Generation 10 Energy Capacity 250 Matter Stores 249 Matter Capacity 300 Sight Range 16 Terrain Scan Range 16 Terrain Scan Density 10 Evasion (%) 55 Item Schematics ----------------- None Robot Schematics ------------------ None Fabricated ------------ Nothing Alien Tech Used ----------------- None Achievements -------------- None Challenges ------------ None Game ------ Seed DisposableMiniInterrupter Manual? 0 Play Time 00:14:35 Cumulative 2.9 hours Start 2024.04.02 @ 18:10:55 End 2024.04.02 @ 18:27:24 Sessions 1 Manual Loads 0 Difficulty Rogue Special Mode None Game No. 6 Rogue 6 Adventurer 0 Explorer 0 Win Type - Total 0 Types 0/0/0/0/0/0/0/0/0 Lore% 7 Gallery% 7 Achievement% 7 Wizard Run 0 Options --------- Layout 1 ASCII 0 Keyboard 0 Movement Numpad Keybinds 0 Fullscreen 2 Font 32/SmallcapsGlow Map View 50x35 Zoom Use 0% Tactical HUD 0 Map Filters NONE Filters NONE Steam 0 RUN: d710177c-f472-47dd-906b-de1d5498586f